[Event "German Bundesliga 2023-24"]
[Site "Germany"]
[Date "2024.02.23"]
[Round "9.46"]
[White "Cyborowski, Lukasz"]
[Black "Ferreira, Jorge Viterbo"]
[Result "1/2-1/2"]
[ECO "D37"]
[WhiteElo "2479"]
[BlackElo "2525"]
[Annotator "TA"]
[PlyCount "40"]
[EventDate "2023.10.20"]
[EventType "team-tourn"]
[EventCountry "GER"]
[SourceTitle "playchess.com"]
[Source "ChessBase"]
[SourceQuality "1"]
[TimeControl "40/6000+30:3000+30"]

{[%evp 9,40,31,37,35,38,31,40,21,18,16,29,0,0,7,9,8,20,11,19,1,12,0,0,0,0,0,0,0,0,0,2,0,0]} 1. d4 {[%emt 0:00:06]} d5 {[%emt 0:00:08]} 2. Nf3 {[%emt 0:00:35]} e6 {[%emt 0:00:31]} 3. c4 {[%emt 0:01:58]} Nf6 {[%emt 0:00:33]} 4. Nc3 {[%emt 0:02:10]} h6 {[%emt 0:00:28]} 5. Bf4 {[%emt 0:05:07]} Bd6 {[%emt 0:00:46]} 6. Bxd6 {[%emt 0:02:32]} Qxd6 {[%emt 0:00:15]} 7. e3 {[%emt 0:02:03]} O-O {[%emt 0:00:19]} 8. Rc1 {[%emt 0:03:49] White is slightly better.} Qe7 {[%emt 0:00:43]} 9. Be2 {[%emt 0:02:50]} dxc4 {[%emt 0:01:54]} 10. Bxc4 {[%emt 0:02:27]} c5 {[%emt 0:00:41] The position is equal.} 11. dxc5 {[%emt 0:09:39]} Qxc5 {[%emt 0:02:44]} 12. Bb3 {[%emt 0:04:00]} Nc6 {[%emt 0:09:13]} 13. O-O {[%emt 0:01:15][%cal Oc3d5]} Qa5 {[%emt 0:05:27]} 14. Qe2 {[%emt 0:06:35]} Bd7 {[%emt 0:03:49]} 15. Rfd1 {[%emt 0:08:12]} Rfd8 {[%emt 0:10:50]} 16. Rd2 {[%emt 0:08:10]} Be8 {[%emt 0:03:40]} 17. Rcd1 {[%emt 0:05:13]} Rxd2 {[%emt 0:04:43]} 18. Qxd2 {[%emt 0:01:17]} Rd8 {[%emt 0:04:49]} 19. Qe2 {[%emt 0:00:33]} Kf8 {[%emt 0:01:43]} 20. h3 {[%emt 0:04:17]} Rxd1+ {[%emt 0:05:30] Weighted Error Value: White=0.06 (flawless) /Black=0.04 (flawless) .  Inaccurate:     	White=1     	---        OK:         	White=1     	Black=8} 1/2-1/2

[Event "German Bundesliga 2023-24"]
[Site "Germany"]
[Date "2024.02.23"]
[Round "9.47"]
[White "Winterberg, Lukas"]
[Black "Jaracz, Pawel"]
[Result "1/2-1/2"]
[ECO "D15"]
[WhiteElo "2410"]
[BlackElo "2472"]
[Annotator "TA"]
[PlyCount "22"]
[EventDate "2023.10.20"]
[EventType "team-tourn"]
[EventCountry "GER"]
[SourceTitle "playchess.com"]
[Source "ChessBase"]
[SourceQuality "1"]
[TimeControl "40/6000+30:3000+30"]

{[%evp 11,22,12,14,-20,-14,0,0,-12,-4,-3,-10,-3,-8]} 1. d4 {[%emt 0:00:04]} d5 {[%emt 0:00:24]} 2. Nf3 {[%emt 0:00:11]} Nf6 {[%emt 0:00:11]} 3. c4 {[%emt 0:00:11]} c6 {[%emt 0:00:14]} 4. Nc3 {[%emt 0:00:11]} e6 {[%emt 0:00:51]} 5. e3 {[%emt 0:00:13]} a6 {[%emt 0:00:23]} 6. a4 {[%emt 0:06:19]} c5 {[%emt 0:01:51] The position is equal.} 7. dxc5 {[%emt 0:01:16]} Bxc5 {[%emt 0:00:08]} 8. cxd5 {[%emt 0:01:32]} exd5 {[%emt 0:00:10]} 9. Bd3 {[%emt 0:05:35]} Nc6 {[%emt 0:03:02]} 10. h3 {[%emt 0:01:55]} O-O {[%emt 0:00:13]} 11. O-O {[%emt 0:02:27]} Be6 {[%emt 0:13:58] Not much happened in this game.   Weighted Error Value: White=0.09 (flawless) /Black=0.03 (flawless) .  OK:         	White=1     	Black=2} 1/2-1/2

[Event "German Bundesliga 2023-24"]
[Site "Germany"]
[Date "2024.02.23"]
[Round "9.48"]
[White "Vandenbussche, Thibaut"]
[Black "Tica, Sven"]
[Result "1/2-1/2"]
[ECO "B12"]
[WhiteElo "2434"]
[BlackElo "2444"]
[Annotator "TA"]
[PlyCount "124"]
[EventDate "2023.10.20"]
[EventType "team-tourn"]
[EventCountry "GER"]
[SourceTitle "playchess.com"]
[Source "ChessBase"]
[SourceQuality "1"]
[TimeControl "40/6000+30:3000+30"]

{[%evp 49,124,-59,-54,-52,-34,-36,-20,-27,-28,-64,-50,-45,-19,-33,-12,-20,-6,-1,0,0,0,-22,-33,-30,-12,-18,-8,-33,-26,-19,-20,-90,0,0,0,0,0,0,18,10,8,10,4,4,416,400,375,352,384,370,314,0,0,0,0,0,0,0,0,0,0,0,0,0,0,0,0,0,0,0,0,0,0,0,0,0,0]} 1. e4 {[%emt 0:00:01]} c6 {[%emt 0:00:12]} 2. d4 {[%emt 0:00:08]} d5 {[%emt 0:00:07]} 3. e5 {[%emt 0:00:03]} Bf5 {[%emt 0:00:20]} 4. g4 {[%emt 0:00:26]} Bd7 {[%emt 0:05:18]} 5. Be3 {[%emt 0:00:48]} Qc7 {[%emt 0:05:08]} 6. Nc3 {[%emt 0:00:49] B12: Caro-Kann: Advance Variation.} h5 $146 {[%emt 0:07:07]} ({Predecessor:} 6... e6 7. f4 c5 8. Nf3 a6 9. a3 Qb6 10. Bg2 h5 11. gxh5 Qxb2 12. Bd2 cxd4 13. Nxd4 {0-1 Hoolt,S (2252)-Van Foreest,J (2519) Lueneburg op-A 2015 (5)}) 7. gxh5 {[%emt 0:00:39]} Nh6 {[%emt 0:00:19]} 8. Bd3 {[%emt 0:20:02]} Bg4 {[%emt 0:18:31]} 9. Be2 {[%emt 0:04:27]} Bf5 {[%emt 0:01:03]} 10. Nf3 {[%emt 0:02:50]} e6 {[%emt 0:09:51]} 11. Qd2 {[%emt 0:00:49]} Bg4 {[%emt 0:12:28]} 12. Ng1 {[%emt 0:21:16]} Bf5 {[%emt 0:02:52]} 13. O-O-O {[%emt 0:02:43]} a6 {[%emt 0:06:59]} 14. Nf3 {[%emt 0:02:47]} Bg4 {[%emt 0:13:02]} 15. Nh4 {[%emt 0:10:46]} Bxe2 {[%emt 0:02:15]} 16. Nxe2 {[%emt 0:00:04]} c5 {[%emt 0:00:51]} 17. dxc5 {[%emt 0:03:54]} Ng4 {[%emt 0:02:47]} 18. Bd4 {[%emt 0:15:50]} Rxh5 {[%emt 0:02:50]} 19. Nf3 {[%emt 0:01:07]} Nc6 {[%emt 0:04:07]} 20. h3 {[%emt 0:05:55]} Ngxe5 {[%emt 0:03:54]} 21. Nxe5 {[%emt 0:00:35]} Nxe5 {[%emt 0:00:37]} 22. Qc3 {[%emt 0:01:01]} Nd7 {[%emt 0:01:46]} 23. Bxg7 {[%emt 0:02:38]} Qxc5 {[%emt 0:00:33]} 24. Qxc5 {[%emt 0:06:50]} Bxc5 {[%emt 0:00:26]} 25. Bd4 {[%emt 0:00:55]} Ke7 {[%emt 0:01:34]} 26. h4 {[%emt 0:01:40]} Rg8 {[%emt 0:02:06]} 27. Ng3 {[%emt 0:00:56]} Rh6 {[%emt 0:00:42]} 28. Rhe1 {[%emt 0:00:54]} Kd6 {[%emt 0:01:55]} (28... Rxh4 $2 29. Nf5+ Kd8 30. Nxh4 $18) 29. h5 {[%emt 0:01:52]} Bxd4 {[%emt 0:00:54]} 30. Rxd4 {[%emt 0:00:02]} Nf6 {[%emt 0:00:09]} 31. Rf4 {[%emt 0:00:30]} Rg5 {[%emt 0:01:56]} 32. a4 {[%emt 0:01:39]} a5 {[%emt 0:01:28]} 33. Re3 {[%emt 0:00:29]} Ng4 {[%emt 0:01:34]} 34. Rb3 {[%emt 0:00:43]} f5 {[%emt 0:00:24]} 35. Rxb7 {[%emt 0:00:42]} Ke5 {[%emt 0:00:34]} (35... Nxf2 36. Nxf5+ exf5 (36... Rxf5 $2 37. Rxf5 Kc6 38. Ra7 $18) 37. Rxf2 Rgxh5 38. Rxf5) 36. Rf3 {[%emt 0:00:58]} Nxf2 {[%emt 0:00:25]} 37. Rxf2 {[%emt 0:00:11]} Rxg3 {[%emt 0:00:01]} 38. Re2+ {[%emt 0:00:23]} Kf4 {[%emt 0:00:39]} 39. Rb6 {[%emt 0:00:25]} Re3 {[%emt 0:01:34]} (39... Rxh5 40. Rbxe6 Kg4 41. Rf2) 40. Rf2+ {[%emt 0:00:59]} (40. Rxe3 $11 {remains equal.} Kxe3 41. b4) 40... Kg3 {[%emt 0:00:32]} (40... Kg4 $17 41. b4 axb4 (41... Rxh5 42. bxa5 Re1+ 43. Kd2 $11) (41... Kxh5 42. Rh2+ Kg5 43. Rxh6 $11) 42. Rg2+ Kf3 (42... Kxh5 43. Rb8 $11)) 41. Rxf5 $11 {[%emt 0:02:19]} exf5 {[%emt 0:07:32]} 42. Rxh6 {[%emt 0:00:10]} f4 {[%emt 0:00:27]} 43. Kd2 {[%emt 0:09:53]} Re5 {[%emt 0:02:38]} 44. Rh8 {[%emt 0:04:18]} Kf2 {[%emt 0:02:50]} 45. h6 {[%emt 0:02:28]} f3 {[%emt 0:04:07]} 46. h7 {[%emt 0:03:05]} Re2+ $2 {[%emt 0:02:58][%mdl 8192]} (46... Re7 $1 $11 {and Black is okay.}) 47. Kd3 $18 {[%emt 0:02:08]} Re7 {[%emt 0:00:25] [#]} 48. c3 $1 {[%emt 0:01:56]} Rf7 {[%emt 0:01:56]} 49. b4 {[%emt 0:02:01]} Kf1 {[%emt 0:07:57]} 50. bxa5 $2 {[%emt 0:01:52]} (50. Kd4 $18) 50... f2 $11 {[%emt 0:00:29]} 51. Kd2 {[%emt 0:00:29]} Re7 {[%emt 0:01:06]} 52. a6 {[%emt 0:01:30]} Re2+ {[%emt 0:00:29]} 53. Kd3 {[%emt 0:00:38]} Re7 {[%emt 0:00:11]} 54. Kd2 {[%emt 0:15:10]} Re2+ {[%emt 0:00:22]} 55. Kd3 {[%emt 0:01:16]} Re7 {[%emt 0:00:06]} 56. a7 {[%emt 0:06:52]} Rxa7 {[%emt 0:01:20]} 57. Kd4 {[%emt 0:00:06]} Rxa4+ {[%emt 0:02:09]} 58. Kxd5 {[%emt 0:00:08]} Rh4 {[%emt 0:00:18]} 59. c4 {[%emt 0:01:01]} Ke2 {[%emt 0:00:35]} 60. Re8+ {[%emt 0:00:39]} Kd3 {[%emt 0:00:26]} (60... Kd2 $5 61. Rf8 $8 (61. h8=R $2 {loses.} Rxh8 62. Rxh8 f1=Q $19) 61... Ke3 $11) 61. Rf8 {[%emt 0:00:24]} Rxh7 {[%emt 0:00:10]} 62. Rxf2 {[%emt 0:00:13]} Rh5+ {[%emt 0:00:05]} 1/2-1/2

[Event "German Bundesliga 2023-24"]
[Site "Germany"]
[Date "2024.02.23"]
[Round "9.49"]
[White "Pfreundt, Jakob"]
[Black "Nisipeanu, Liviu-Dieter"]
[Result "1/2-1/2"]
[ECO "C02"]
[WhiteElo "2455"]
[BlackElo "2600"]
[Annotator "TA"]
[PlyCount "76"]
[EventDate "2023.10.20"]
[EventType "team-tourn"]
[EventCountry "GER"]
[SourceTitle "playchess.com"]
[Source "ChessBase"]
[SourceQuality "1"]
[TimeControl "40/6000+30:3000+30"]

{[%evp 18,76,20,20,20,14,11,10,12,-46,-58,-43,-36,-48,-29,-42,-41,-44,0,0,0,0,0,-10,0,0,0,0,0,0,49,38,31,39,104,75,128,32,152,161,150,144,129,116,215,221,162,-30,-33,-20,-23,-30,0,-19,0,0,0,0,0,0,0]} 1. e4 {[%emt 0:00:05][%cal Be2e4,Be4e5][%mdl 32]} e6 {[%emt 0:00:12]} 2. d4 {[%emt 0:00:10]} d5 {[%emt 0:00:06]} 3. e5 {[%emt 0:00:27]} c5 {[%emt 0:00:39]} 4. c3 {[%emt 0:00:07]} Nc6 {[%emt 0:00:36]} 5. Nf3 {[%emt 0:00:09]} Bd7 {[%emt 0:00:05]} 6. Be2 {[%emt 0:00:38]} f6 {[%emt 0:00:37]} 7. O-O {[%emt 0:00:46]} fxe5 {[%emt 0:00:06]} 8. Nxe5 {[%emt 0:00:09]} Nxe5 {[%emt 0:00:20]} 9. dxe5 {[%emt 0:00:05]} Qc7 {[%emt 0:00:04]} 10. Re1 {[%emt 0:00:47]} O-O-O {[%emt 0:02:39]} 11. Nd2 {[%emt 0:00:21]} Ne7 {[%emt 0:02:13][%cal Oc8b8]} 12. Nf3 {[%emt 0:00:36]} h6 {[%emt 0:02:41] Dodges Ng5} 13. h4 {[%emt 0:03:01]} (13. b4 $11) 13... Nc6 {[%emt 0:13:49]} 14. Bf4 {[%emt 0:26:53]} Be8 {[%emt 0:15:09]} 15. Bg3 {[%emt 0:05:54]} Bh5 {[%emt 0:09:31]} 16. Qa4 {[%emt 0:04:27][%cal Of3d4]} Qa5 {[%emt 0:11:54]} 17. Qc2 {[%emt 0:07:50][%cal Of3d4]} Be7 {[%emt 0:03:25]} 18. b4 {[%emt 0:21:47]} Qc7 {[%emt 0:00:07]} 19. b5 {[%emt 0:04:54]} Na5 {[%emt 0:01:13]} 20. Nd4 {[%emt 0:08:41]} cxd4 {[%emt 0:07:03]} 21. Bxh5 {[%emt 0:00:11][%cal Be2h5,Bh5f7,Bf7e6,Be6f5,Bf5d3][%mdl 32]} dxc3 {[%emt 0:00:10] And now ...Kb8 would win.} 22. Bf7 {[%emt 0:05:32]} Kb8 {[%emt 0:11:50] ...d4 is the strong threat.} 23. Bxe6 {[%emt 0:00:07]} d4 {[%emt 0:00:03]} (23... Ka8 $11) 24. Bf5 $1 $14 {[%emt 0:00:37] aiming for e6. A strong pair of Bishops.} Ka8 {[%emt 0:01:48]} 25. e6 {[%emt 0:02:44]} Qb6 {[%emt 0:01:32]} ({Black should play} 25... Qc5 $14) 26. Bd3 $16 {[%emt 0:00:57]} Rhe8 {[%emt 0:03:50]} (26... g5 $142) 27. Re4 {[%emt 0:01:04]} ({Better is} 27. Qa4 $1 $16) 27... Bf6 {[%emt 0:00:21]} (27... Bd6 $14) 28. Rae1 {[%emt 0:01:03]} Re7 {[%emt 0:00:07]} 29. Qa4 {[%emt 0:01:53]} Rc8 {[%emt 0:00:07]} 30. R1e2 {[%emt 0:02:19]} a6 {[%emt 0:04:05]} (30... Qd8 $16 {might work better.}) 31. bxa6 $18 {[%emt 0:10:38]} bxa6 {[%emt 0:00:06] [#]} 32. Bd6 $2 {[%emt 0:00:25]} Qxd6 $11 {[%emt 0:02:30]} 33. Qxa5 {[%emt 0:00:02]} Ka7 {[%emt 0:00:46]} 34. g3 {[%emt 0:01:19]} Rb8 {[%emt 0:05:16]} 35. Kg2 {[%emt 0:00:32] The position is equal.} Rb2 {[%emt 0:03:05]} (35... Qc6 $5) 36. Qf5 {[%emt 0:00:32]} Qc6 {[%emt 0:01:05] ...Rxe2 would now be deadly.} 37. Rxb2 {[%emt 0:00:36]} cxb2 {[%emt 0:00:05]} 38. Kh2 {[%emt 0:00:21]} Rc7 {[%emt 0:06:26] Weighted Error Value: White=0.15 (very precise) /Black=0.24 (precise) .  Missed win:     	White=1     	---        Mistake:       	White=2     	Black=5      Inaccurate:     	---       	Black=2      OK:         	White=14    	Black=11     Best:        	White=4     	---        Strong:       	White=1     	---} 1/2-1/2

[Event "German Bundesliga 2023-24"]
[Site "Germany"]
[Date "2024.02.23"]
[Round "9.50"]
[White "Bartel, Mateusz"]
[Black "Petkidis, Anthony"]
[Result "1/2-1/2"]
[ECO "B10"]
[WhiteElo "2651"]
[BlackElo "2429"]
[Annotator "TA"]
[PlyCount "52"]
[EventDate "2023.10.20"]
[EventType "team-tourn"]
[EventCountry "GER"]
[SourceTitle "playchess.com"]
[Source "ChessBase"]
[SourceQuality "1"]
[TimeControl "40/6000+30:3000+30"]

{[%evp 9,52,0,4,0,10,-8,-7,-13,-13,-12,0,-13,-17,-18,-8,-23,10,-48,-51,-52,-52,-50,-48,-56,-48,-48,-33,-38,-41,-42,-31,-77,-70,-73,-72,-74,-75,-72,-68,-68,-55,-58,-56,-56,-66]} 1. e4 {[%emt 0:00:03]} c6 {[%emt 0:00:21]} 2. Nf3 {[%emt 0:00:06]} d5 {[%emt 0:00:17]} 3. d3 {[%emt 0:00:03]} dxe4 {[%emt 0:00:54]} 4. dxe4 {[%emt 0:00:08]} Qxd1+ {[%emt 0:00:05]} 5. Kxd1 {[%emt 0:00:07]} Nf6 {[%emt 0:00:10]} 6. Nbd2 {[%emt 0:00:05]} g6 {[%emt 0:01:25]} 7. a4 {[%emt 0:00:12]} Bg4 {[%emt 0:05:24]} 8. c3 {[%emt 0:12:16] The position is equal.} Bxf3+ {[%emt 0:05:04]} 9. gxf3 {[%emt 0:00:40]} Bh6 $1 {[%emt 0:00:09]} 10. Nc4 {[%emt 0:01:52]} Bxc1 {[%emt 0:00:21]} 11. Kxc1 {[%emt 0:00:03]} Nbd7 {[%emt 0:05:08]} 12. Kd2 {[%emt 0:00:45]} Nb6 {[%emt 0:14:04]} 13. a5 {[%emt 0:10:16]} (13. Ke3 $11) 13... Nxc4+ $15 {[%emt 0:01:30]} 14. Bxc4 {[%emt 0:00:04]} e5 {[%emt 0:10:00]} 15. b4 {[%emt 0:17:03]} Ke7 {[%emt 0:04:02]} 16. Kc2 {[%emt 0:02:12]} Rhd8 {[%emt 0:03:26]} 17. Rhd1 {[%emt 0:02:55]} Nh5 {[%emt 0:06:27]} 18. b5 {[%emt 0:04:20]} cxb5 {[%emt 0:06:27]} 19. Bxb5 {[%emt 0:01:05]} Nf4 {[%emt 0:02:37]} 20. Rab1 {[%emt 0:17:01]} (20. Ba4 $15) 20... Rxd1 $17 {[%emt 0:04:48]} 21. Rxd1 {[%emt 0:00:08][%mdl 4096] Endgame. KRB-KRN} Rd8 {[%emt 0:03:46] Repels Rd7+} 22. Rb1 {[%emt 0:00:04] [#]} Rc8 $1 {[%emt 0:00:28]} 23. Ba4 {[%emt 0:00:24]} Rc7 {[%emt 0:00:48]} 24. Kd2 {[%emt 0:02:15] Black is slightly better.} Kd8 {[%emt 0:01:22]} 25. Rb5 {[%emt 0:01:18]} f6 {[%emt 0:03:02]} 26. Bb3 {[%emt 0:00:06]} Kc8 {[%emt 0:14:14] Weighted Error Value: White=0.12 (very precise) /Black=0.04 (flawless) .  Mistake:       	White=2     	---        Inaccurate:     	---       	Black=1      OK:         	White=5     	Black=10     Best:        	---       	Black=2      Strong:       	---       	Black=2} 1/2-1/2

[Event "German Bundesliga 2023-24"]
[Site "Germany"]
[Date "2024.02.23"]
[Round "9.51"]
[White "Abel, Dennes"]
[Black "Gajewski, Grzegorz"]
[Result "1-0"]
[ECO "A17"]
[WhiteElo "2404"]
[BlackElo "2561"]
[Annotator "TA"]
[PlyCount "131"]
[EventDate "2023.10.20"]
[EventType "team-tourn"]
[EventCountry "GER"]
[SourceTitle "playchess.com"]
[Source "ChessBase"]
[SourceQuality "1"]
[TimeControl "40/6000+30:3000+30"]

{[%evp 45,131,-161,-155,-238,-222,-318,-318,-318,-318,-302,222,214,184,156,176,201,375,370,462,460,449,382,372,329,333,311,360,359,334,378,343,182,489,477,820,791,883,827,739,651,639,663,654,616,697,677,600,370,351,348,293,346,350,317,329,320,429,411,408,398,517,343,320,0,555,561,627,571,597,589,550,91,94,89,85,80,78,89,50,51,225,210,257,225,2190,2157,1583,1008]} 1. Nf3 {[%emt 0:00:05]} d5 {[%emt 0:00:05]} 2. e3 {[%emt 0:00:11]} Nf6 {[%emt 0:00:05]} 3. c4 {[%emt 0:00:07]} e6 {[%emt 0:00:03]} 4. Nc3 {[%emt 0:00:22]} Bd6 {[%emt 0:00:07]} 5. b3 {[%emt 0:00:47]} O-O {[%emt 0:00:10]} 6. Bb2 {[%emt 0:00:26] A17: English Opening: 1...Nf6 with ...Bb4.} Nc6 {[%emt 0:00:30]} 7. a3 {[%emt 0:13:23]} d4 $146 {[%emt 0:06:49]} ({Predecessor:} 7... dxc4 8. bxc4 e5 9. Qc2 Re8 10. d3 Bf5 11. Nd2 Bc5 12. h3 h6 13. Be2 Qd7 {1-0 Roeder,M (2404)-Wuts,F (2306) BEL-chT 0405 2004 (2)}) 8. Nxd4 {[%emt 0:09:39]} Nxd4 {[%emt 0:00:06]} 9. exd4 {[%emt 0:00:04]} c6 {[%emt 0:00:31]} 10. Qc2 {[%emt 0:06:56]} e5 {[%emt 0:05:47]} 11. dxe5 {[%emt 0:02:38]} Bxe5 {[%emt 0:01:24]} 12. f3 {[%emt 0:04:39]} g6 {[%emt 0:32:02]} 13. O-O-O {[%emt 0:03:45]} Bf5 {[%emt 0:00:19]} 14. d3 {[%emt 0:02:48]} h5 {[%emt 0:07:20]} 15. Ne4 {[%emt 0:11:15]} Re8 {[%emt 0:04:17]} 16. Bxe5 {[%emt 0:08:35]} Rxe5 {[%emt 0:00:05]} 17. Qc3 {[%emt 0:02:50]} Re6 {[%emt 0:04:14]} 18. Nxf6+ {[%emt 0:05:31]} Rxf6 {[%emt 0:00:09]} 19. d4 {[%emt 0:01:00]} Rd6 {[%emt 0:05:47]} 20. Kb2 {[%emt 0:03:42]} Qg5 {[%emt 0:02:50]} 21. g3 {[%emt 0:06:48]} Re8 {[%emt 0:05:20]} 22. f4 {[%emt 0:03:47]} Qd8 {[%emt 0:01:01]} 23. c5 {[%emt 0:05:03]} ({Better is} 23. Rg1 $15) 23... Rde6 $1 $19 {[%emt 0:03:36]} 24. Bc4 {[%emt 0:00:59]} (24. a4 $17) 24... Re3 $19 {[%emt 0:00:11]} 25. Qb4 {[%emt 0:00:18]} (25. Qd2 {keeps fighting.} Qf6 26. Ka2) 25... b5 $19 {[%emt 0:01:33]} 26. cxb6 {[%emt 0:00:51]} axb6 {[%emt 0:00:04]} 27. a4 {[%emt 0:00:57] [#]} c5 $4 {[%emt 0:08:10][%mdl 8192]} (27... b5 $1 $19 {[%cal Rb5c4][%mdl 512] avoids the disaster.} 28. axb5 cxb5 29. Bxb5 Qb8) 28. dxc5 $18 {[%emt 0:01:58]} Qf6+ {[%emt 0:00:02]} 29. Ka3 $1 {[%emt 0:00:38]} bxc5 {[%emt 0:09:56]} 30. Qxc5 {[%emt 0:00:09]} Bc2 $2 {[%emt 0:03:38]} (30... R8e4 {was worth a try.}) 31. Rd6 $18 {[%emt 0:06:29]} Qg7 {[%emt 0:01:14]} 32. Rc1 {[%emt 0:01:31]} Bf5 {[%emt 0:01:44]} 33. Rcd1 {[%emt 0:02:23]} Kh7 {[%emt 0:00:59]} 34. Qd4 {[%emt 0:00:58]} Qf8 {[%emt 0:00:01]} 35. Kb2 {[%emt 0:00:24]} R8e4 {[%emt 0:01:45]} 36. Qf6 {[%emt 0:03:09]} Rxc4 {[%emt 0:00:02]} 37. bxc4 {[%emt 0:00:17]} Re2+ {[%emt 0:01:35]} 38. Kc3 {[%emt 0:01:31]} (38. Ka3 $142) 38... Rc2+ $2 {[%emt 0:05:14]} (38... Qb8 39. Rb6 (39. Qxf7+ Kh6 $11) 39... Qc7) 39. Kb3 $18 {[%emt 0:00:52]} Qb8+ {[%emt 0:00:03]} (39... Re2 $142) 40. Rb6 $18 {[%emt 0:00:07]} Qc7 {[%emt 0:01:08]} 41. Rb4 {[%emt 0:16:37]} Qa7 {[%emt 0:05:40]} 42. Qd4 {[%emt 0:05:48]} Qa8 {[%emt 0:00:54]} 43. Qd5 {[%emt 0:01:31]} Qh8 {[%emt 0:17:29]} 44. Qe5 {[%emt 0:06:41]} ({Inferior is} 44. Qxf7+ Kh6 45. Ka3 Rc3+ 46. Ka2 (46. Rb3 Bc2 $11) 46... Rc2+ 47. Ka3 Rc3+ 48. Ka2 (48. Rb3 Bc2 $11) 48... Rc2+ 49. Ka3 $11) 44... Qc8 {[%emt 0:00:15]} 45. Rd5 {[%emt 0:05:59]} Rc1 {[%emt 0:00:54]} 46. Kb2 {[%emt 0:01:47]} Rxc4 {[%emt 0:03:47]} 47. Rxc4 {[%emt 0:06:26]} Qxc4 {[%emt 0:00:02]} 48. Qd4 {[%emt 0:00:55]} Qc2+ {[%emt 0:00:14]} 49. Ka3 {[%emt 0:00:04]} Be6 {[%emt 0:04:47]} 50. Qd2 {[%emt 0:02:22]} Qb1 {[%emt 0:01:34]} 51. Rb5 {[%emt 0:00:25]} Qa1+ {[%emt 0:00:03]} 52. Kb4 {[%emt 0:00:09]} Qb1+ {[%emt 0:01:00]} 53. Ka5 {[%emt 0:00:48]} Qg1 {[%emt 0:01:13]} 54. Kb4 $2 {[%emt 0:02:13]} (54. Qd6) 54... Qb1+ $1 $18 {[%emt 0:01:13]} 55. Kc5 $1 {[%emt 0:00:19]} Qg1+ {[%emt 0:02:11]} 56. Qd4 {[%emt 0:00:38]} Qc1+ {[%emt 0:00:11]} 57. Kb6 {[%emt 0:00:54]} Qc8 {[%emt 0:00:29]} 58. Rc5 $2 {[%emt 0:02:15]} (58. Qd6 $18 {has better winning chances.} Qa8 59. a5) 58... Qb8+ $16 {[%emt 0:00:16] [#]} 59. Ka5 $1 {[%emt 0:00:22]} Qa7+ {[%emt 0:00:13]} 60. Kb4 {[%emt 0:00:16]} Qb6+ {[%emt 0:00:04]} 61. Kc3 {[%emt 0:00:11]} Qb3+ {[%emt 0:00:28]} 62. Kd2 {[%emt 0:00:04]} Bg4 $2 {[%emt 0:02:44]} (62... Qa2+ $1 $14 63. Rc2 Qb1) 63. Rc2 {[%emt 0:01:46]} Bf5 {[%emt 0:03:05] [#]} 64. Rb2 $1 {[%emt 0:00:29]} Qa3 $2 {[%emt 0:00:09]} (64... Qf3 65. a5 Qa8) 65. Rb8 $18 {[%emt 0:02:53]} Qa2+ {[%emt 0:00:10]} 66. Ke3 {[%emt 0:00:24]} 1-0